Cogmind - Beta 15 @@@ ROGUE MODE // 2025.08.09 @ 01:07:47 Player: lvl5hm Result: Destroyed by G-67 Veteran with Plasma Rifle Performance ------------- Evolutions (7) 3500 Regions Visited (14) 2800 Robots Destroyed (239) 1195 Value Destroyed (10167) 10167 Prototype IDs (34) 680 Alien Tech Used (5) 1000 Bonus (7541) 7541 TOTAL SCORE: 26883 Bonus ------- High Alert Combat Kills 387 Follower Combat Kills 1098 Network Hubs Disabled 200 Built Enhanced Grunts 300 A7 Reached Mainframe 300 Met R17 at Cetus 500 Used Core Reset Matrix 3000 Met R17 at Research 2000 Scanned by Researcher 500 Friendly Fire -744 Cogmind --------- Core Integrity 0/1300 Matter 0/300 Energy 99/100 System Corruption 49% Temperature Cool (18) Movement Core (50) Location -3/Quarantine Parts ------- > --- POWER (2) -------- (None) > --- PROPULSION (5) --- (None) > --- UTILITY (10) ----- (None) > --- WEAPON (4) ------- (None) > --- INVENTORY (5) ---- Medium Treads Medium Treads Advanced Cooling System Core Cannon Peak State ------------ > --- POWER ------------ Neutrino Core Particle Reactor > --- PROPULSION ------- Biometal Medium Treads Biometal Medium Treads Biometal Medium Treads Biometal Medium Treads High-density Centrium Leg > --- UTILITY ---------- Advanced Cooling System Large Storage Unit Advanced Energy Well Enhanced Optical Array Advanced Signal Interpreter Experimental Targeting Computer Experimental Target Analyzer Layered Medium Armor Plating Layered Medium Armor Plating Phase Redirector > --- WEAPON ----------- Phase Gun Advanced Variable Charge Gun Quantum Rifle Nova Cannon > --- INVENTORY -------- Reinforced Fission Core Reinforced Fission Core Myomer Leg Myomer Leg Myomer Leg Advanced Cryofiber Web Advanced Cooling System Long-range Sensor Array Advanced Transmission Jammer Graphene Brace Advanced Force Field Compact HERF Cannon Core Cannon Hellfire Missile Launcher [Rating: 163] Favorites ----------- Power Light Quantum Reactor Engine Heavy Ion Engine Power Core Reinforced Fission Core Reactor Light Quantum Reactor Propulsion Aluminum Leg Treads Biometal Medium Treads Leg Aluminum Leg Utility Large Storage Unit Device Advanced Heat Sink Storage Large Storage Unit Processor Enhanced Optical Array Protection Improved Medium Armor Plating Artifact Phase Redirector Weapon Improved Medium Laser Energy Gun Improved Medium Laser Energy Cannon Heavy Phase Cannon Ballistic Gun Enhanced Coil Gun Launcher Rocket Launcher Build | -11 -10 -9 -9 -8 -7 -6 -5 -4 -4 -4 -4 -4 -3 -3 ------- Run | Yrd Mat Mat Sto Mat Fac Fac Fac Fac Ext Cet Arc Hub Res Qua Slots Evolved 14 | . . 2 . 2 2 2 2 2 . . . . 2 . Power 1 | . . . . . . . . 1 . . . . . . Propulsion 3 | . . 2 . . . . 1 . . . . . . . Utility 8 | . . . . 1 1 2 1 1 . . . . 2 . Weapon 2 | . . . . 1 1 . . . . . . . . . Parts Attached 249 | 6 13 15 15 6 6 10 9 19 56 7 15 15 19 38 Power 30 | 1 2 3 1 . 1 . 1 5 4 1 1 3 3 4 Engine 8 | 1 2 3 1 . 1 . . . . . . . . . Core 9 | . . . . . . . 1 2 . 1 . 2 1 2 Reactor 13 | . . . . . . . . 3 4 . 1 1 2 2 Propulsion 87 | 2 4 5 9 1 2 5 4 4 27 1 5 4 6 8 Treads 7 | . . . . . . . . . . . . . 5 2 Leg 80 | 2 4 5 9 1 2 5 4 4 27 1 5 4 1 6 Wheel . | . . . . . . . . . . . . . . . Hover . | . . . . . . . . . . . . . . . Flight . | . . . . . . . . . . . . . . . Utility 77 | 1 4 2 1 4 2 4 1 6 13 3 5 7 7 17 Device 43 | . 1 1 1 3 . 2 . 5 8 3 4 3 4 8 Storage 9 | 1 2 . . . . . . 1 1 . 1 1 1 1 Processor 12 | . . 1 . . . 2 1 . 1 . . . 2 5 Hackware . | . . . . . . . . . . . . . . . Protection 12 | . 1 . . 1 2 . . . 3 . . 3 . 2 Artifact 1 | . . . . . . . . . . . . . . 1 Weapon 55 | 2 3 5 4 1 1 1 3 4 12 2 4 1 3 9 Energy Gun 32 | 1 1 2 3 1 1 1 1 4 4 2 3 1 1 6 Energy Cannon 8 | . . . . . . . . . 4 . 1 . . 3 Ballistic Gun 12 | 1 2 2 1 . . . 2 . 4 . . . . . Ballistic Cannon . | . . . . . . . . . . . . . . . Launcher 3 | . . 1 . . . . . . . . . . 2 . Special Weapon . | . . . . . . . . . . . . . . . Impact Weapon . | . . . . . . . . . . . . . . . Slashing Weapon . | . . . . . . . . . . . . . . . Piercing Weapon . | . . . . . . . . . . . . . . . Special Melee Weapon . | . . . . . . . . . . . . . . . Unidentified Prototypes 30 | . . 2 2 . . 1 2 4 . 1 4 . 6 8 Corrupted Parts 3 | . . . . . . . . . . . . . . 3 System Corruption 17 | . . . . . . . . . . . . . . 17 Parts Lost 47 | . 1 1 1 . . 1 1 . 12 . . 5 3 22 Power 7 | . 1 . . . . . . . 2 . . 2 . 2 Propulsion 11 | . . 1 1 . . . . . 1 . . 1 . 7 Utility 13 | . . . . . . . . . 6 . . 1 2 4 Weapon 16 | . . . . . . 1 1 . 3 . . 1 1 9 Highest Loss Streak 11 | . 1 1 1 . . 1 1 . 4 . . 4 2 11 To Critical Strikes . | . . . . . . . . . . . . . . . Average Backups 13 | 1 7 14 14 14 14 14 14 14 14 14 14 14 14 12 Power 1 | . . 1 2 2 2 1 1 1 2 2 2 1 1 1 Propulsion 3 | . 1 3 2 3 3 3 3 4 4 3 3 3 3 3 Utility 3 | . 1 3 2 2 2 3 3 3 4 5 5 6 5 4 Weapon 4 | . 3 5 7 7 6 5 5 4 3 4 4 3 4 3 Tool/Special . | . . . . . . . . . . . . . . . Unused Backups 31 | . 1 1 4 1 1 . 7 1 6 . 3 . 3 3 Power 5 | . . . . . . . 2 . 2 . . . 1 . Propulsion 4 | . . . . 1 1 . 1 . . . . . . 1 Utility 7 | . 1 . 2 . . . 1 . . . 2 . 1 . Weapon 15 | . . 1 2 . . . 3 1 4 . 1 . 1 2 Tool/Special . | . . . . . . . . . . . . . . . Average Slot Usage (%) 97 | . 97 99 98 95 99 98 99 98 97 99 99 99 97 93 Engine 3 | . 14 11 10 9 6 6 4 . . . . . . . Core 1 | . . . . . . . . 5 . 1 1 . 4 3 Reactor 4 | . . . . . . . . 3 9 8 8 9 4 5 Treads 3 | . . . . . . . . . . . . . 16 15 Leg 24 | . 27 43 43 36 30 26 29 25 26 26 26 26 6 4 Device 16 | . 4 2 10 11 14 19 15 17 15 21 25 24 24 17 Storage 7 | . 14 11 11 9 7 6 5 5 7 5 5 5 7 8 Processor 8 | . . 2 . . . 5 6 10 11 10 10 10 10 15 Protection 3 | . 7 6 . 2 7 6 10 7 3 5 . 1 1 2 Energy Gun 16 | . 5 1 21 27 30 25 19 11 11 11 20 20 18 14 Energy Cannon 1 | . . . . . . . . . 4 8 . . . 2 Ballistic Gun 3 | . 22 20 . . . . 3 8 3 . . . . . Peak Build Rating 163 | 6 12 15 18 25 36 53 71 124 127 115 132 130 150 163 Average Rating 88 | 4 9 12 17 23 30 50 61 100 116 112 126 127 143 144 On Entrance 64 | . 6 10 15 18 25 36 53 71 122 110 113 128 118 147 Naked Turns 55 | . . . . . . . . . . . . . . 55 Heaviest Build 126 | 11 32 35 35 42 52 57 62 89 98 94 83 98 104 126 Greatest Support 175 | 20 20 40 40 47 57 67 82 106 125 105 137 137 175 175 Greatest Overweight (x) 3 | 2 3 . . . . . . 1 . . . . 2 1 Average Overweight (x) . | . . . . . . . . . . . . . . . Largest Inventory Capacity 15 | 8 15 15 15 15 15 15 15 15 15 15 15 15 15 15 Average Capacity 14 | 7 10 15 15 15 15 15 15 15 15 15 15 15 15 14 Most Carried 15 | 2 12 15 15 15 15 15 15 15 15 15 15 15 15 15 Average Carried 13 | 1 7 14 14 14 14 14 14 14 14 14 14 14 14 13 Final Capacity 15 | 8 15 15 15 15 15 15 15 15 15 15 15 15 15 5 Final Carried 15 | 2 12 15 15 14 15 15 15 15 14 15 15 14 15 5 Class Distribution -------------------- 34% | Scavenger-Tank 27% | Scavenger-Skirmisher 15% | Scavenger-Mutant 7% | Scavenger-Gunner 6% | Mutant 6% | Skirmisher Dominant Class ---------------- Mutant | -10/Materials Scavenger-Mutant | -9/Materials Scavenger-Mutant | -9/Storage Scavenger-Gunner | -8/Materials Scavenger-Tank | -7/Factory Skirmisher | -6/Factory Scavenger-Tank | -5/Factory Scavenger-Skirmisher | -4/Factory Scavenger-Tank | -4/Extension Scavenger-Tank | -4/Cetus Scavenger-Skirmisher | -4/Archives Scavenger-Skirmisher | -4/Hub_04(d) Scavenger-Tank | -3/Research Scavenger-Skirmisher | -3/Quarantine Resources | -11 -10 -9 -9 -8 -7 -6 -5 -4 -4 -4 -4 -4 -3 -3 ----------- Run | Yrd Mat Mat Sto Mat Fac Fac Fac Fac Ext Cet Arc Hub Res Qua Matter Collected 5140 | 235 445 594 210 37 113 194 183 349 1307 90 210 229 349 595 Remotely . | . . . . . . . . . . . . . . . Salvage Created 12688 | 56 674 787 1191 24 345 262 1103 445 2936 272 741 724 638 2490 Parts 507 | 2 32 60 65 1 10 5 31 11 85 8 29 42 15 111 Haulers Intercepted 17 | . 1 4 3 . 1 . 2 1 1 . . . 3 1 Recyclers Shooed 13 | . 3 1 . . . 2 2 . 4 . . . . 1 Parts Field Recycled . | . . . . . . . . . . . . . . . Retrieved Matter . | . . . . . . . . . . . . . . . Parts Self-Destructed . | . . . . . . . . . . . . . . . Prevented . | . . . . . . . . . . . . . . . Kills | -11 -10 -9 -9 -8 -7 -6 -5 -4 -4 -4 -4 -4 -3 -3 ------- Run | Yrd Mat Mat Sto Mat Fac Fac Fac Fac Ext Cet Arc Hub Res Qua Combat Hostiles Destroyed 151 | . 9 13 20 . 4 2 12 1 35 4 . 9 4 38 Guns 100 | . 9 9 17 . 3 1 10 1 27 1 . 7 2 13 Cannons 13 | . . . . . . . . . 5 2 . . . 6 AOE 14 | . . 4 . . . . . . . . . . . 10 Classes Destroyed 20 | 1 5 4 1 . 1 . 1 1 2 . 1 1 . 2 Worker 12 | . 1 1 1 . 1 . 1 . 1 . . 1 . 5 Builder 14 | . . 1 3 . 1 1 2 . 1 . . 1 1 3 Tunneler 1 | . 1 . . . . . . . . . . . . . Hauler 17 | . 1 4 3 . 1 . 2 1 1 . . . 3 1 Recycler 15 | 1 3 . 1 . . 1 2 2 4 . . . 1 . Mechanic 2 | . . . . . . . . . 1 . . . . 1 Operator 6 | . . 1 1 . . . . . 2 . 2 . . . Watcher 10 | . 1 1 2 1 1 . . 1 1 . . 1 . 1 Swarmer 22 | . . . 3 . . . 4 . 6 . . . . 9 Grunt 62 | . 9 8 13 . 2 1 2 . 17 . . 1 3 6 Brawler 1 | . . 1 . . . . . . . . . . . . Duelist 1 | . . . . . . . . . . . . . 1 . Researcher 3 | . . . . . . . . . . . . . . 3 Sentry 18 | . . 4 4 . 1 . 1 . 5 . . . . 3 Specialist 3 | . . . . . . . 1 . . . . 2 . . Hunter 12 | . . . . . . . . 1 5 . . 2 . 4 Programmer 24 | . . . . . 1 1 4 . . . . 3 . 15 Heavy 1 | . . . . . . . . . . . . 1 . . Behemoth 2 | . . . . . . . . . 2 . . . . . Cetus Guard 4 | . . . . . . . . . . 4 . . . . Enhanced Grunt 5 | . . . . . . . . . . . 5 . . . Alpha 7 1 | . . . . . . . . . . . . . . 1 Thug 1 | . . . . . . . . . . . 1 . . . Butcher 1 | . . . . . . . . . . . 1 . . . Guerrilla 1 | . . . . . . . . . . . 1 . . . Best Kill Streak 16 | 1 3 6 5 1 2 3 8 4 5 3 1 3 2 16 Combat Bots Only 11 | . 2 5 3 . 1 1 4 1 5 3 . 3 2 11 Max Kills in Single Turn 4 | 1 2 3 2 1 2 1 2 1 2 2 1 2 1 4 Gunslinging 1 | . 1 . . . . . . . 1 . . . . . Exploded 4 | . . 2 . . . . . . . . . . . 4 Melee . | . . . . . . . . . . . . . . . Uniques/NPCs Destroyed . | . . . . . . . . . . . . . . . Combat | -11 -10 -9 -9 -8 -7 -6 -5 -4 -4 -4 -4 -4 -3 -3 -------- Run | Yrd Mat Mat Sto Mat Fac Fac Fac Fac Ext Cet Arc Hub Res Qua Hostile Shots Fired 1225 | . 30 52 89 2 48 9 62 4 291 5 . 116 24 493 Missed 378 | . 10 11 27 1 24 3 25 1 81 . . 38 9 148 Hits 847 | . 20 41 62 1 24 6 37 3 210 5 . 78 15 345 Projectile 847 | . 20 41 62 1 24 6 37 3 210 5 . 78 15 345 AOE 1 | . . . . . . . . . . . . 1 . . Critical Strikes 55 | . . 1 . . . . 2 . 11 2 . 10 1 28 Actively Blocked 20 | . . . . . . . . . 3 2 . 4 1 10 Part Disruptions 2 | . . . . . . . . . . . . 1 . 1 Damage Taken 15347 | . 284 549 709 15 205 103 725 62 3903 196 . 1898 374 6324 Core 1969 | . 45 37 162 . 43 48 59 20 212 . . 43 92 1208 Absorbed by Shields 1521 | . . . . . . . . 16 515 80 . . 98 812 Redirected to Core 330 | . . . . . . . . . . . . . . 330 Redirected to Shielding 46 | . 21 25 . . . . . . . . . . . . Regen/Repaired (Parts) 308 | . . . 253 . . 55 . . . . . . . . Core Remaining (%) 86 | 100 82 . 50 100 93 94 94 . . . . 76 . . Volleys Fired 655 | 2 58 62 70 1 13 15 39 7 126 12 43 28 31 148 Largest 4 | 2 2 2 2 3 4 4 4 4 4 4 4 4 4 4 Hottest 643 | 70 70 46 112 168 224 231 231 204 358 358 362 507 643 375 Shots Fired 1769 | 4 103 106 140 3 52 60 157 28 458 37 127 95 82 317 Gun 1566 | 4 103 101 140 3 52 60 157 28 377 12 125 95 82 227 Cannon 182 | . . . . . . . . . 71 25 2 . . 84 Launcher 21 | . . 5 . . . . . . 10 . . . . 6 Special . | . . . . . . . . . . . . . . . Kinetic 313 | 2 77 101 . . . . 23 14 96 . . . . . Thermal 1352 | 2 13 . 140 3 52 60 134 14 352 37 127 95 82 241 Explosive 21 | . . 5 . . . . . . 10 . . . . 6 Electromagnetic 83 | . 13 . . . . . . . . . . . . 70 Robot Hit Streak 22 | 1 13 10 18 4 6 7 16 9 21 11 22 20 22 18 Robot Miss Streak 8 | 1 6 7 6 . 4 3 6 2 8 2 6 4 1 4 Penetration Max 1 | . . . . . . . . 1 1 . . . . . Secondary Targets 14 | . 1 1 . . 1 1 2 . 5 . . 1 1 1 Max Gunslinging Chain 1 | . 1 1 . . 1 1 1 . 1 . . 1 1 1 Shots Hit Robots 1134 | 2 58 70 93 2 29 41 93 18 290 25 93 68 54 198 Core Hits 473 | 2 25 36 32 2 13 14 35 12 120 13 36 23 16 94 Critical Kills 4 | . 1 . . . . . 1 . . 1 . . . 1 Critical Parts Destroyed 5 | . . 2 . . . . . . 3 . . . . . Critical Strikes 52 | . 1 2 22 . 3 2 9 . 8 1 . . 1 3 Burn 43 | . . . 22 . 3 2 8 . 5 . . . 1 2 Meltdown 2 | . . . . . . . . . . 1 . . . 1 Destroy 7 | . 1 2 . . . . 1 . 3 . . . . . Melee Attacks . | . . . . . . . . . . . . . . . Impact . | . . . . . . . . . . . . . . . Slashing . | . . . . . . . . . . . . . . . Piercing . | . . . . . . . . . . . . . . . Sneak Attacks . | . . . . . . . . . . . . . . . Combat Hostiles . | . . . . . . . . . . . . . . . Follow-up Attacks . | . . . . . . . . . . . . . . . Damage Inflicted 33115 | 25 840 1309 1658 35 538 775 1980 489 9647 923 2171 2019 1357 9349 Guns 24300 | 25 804 990 1658 35 538 775 1807 489 6895 231 2101 2012 1355 4585 Cannons 4842 | . . . . . . . . . 1962 692 70 . . 2118 Explosions 3835 | . 33 319 . . . . 173 . 726 . . . . 2584 Melee . | . . . . . . . . . . . . . . . Ramming 138 | . 3 . . . . . . . 64 . . 7 2 62 Kinetic 3736 | . 624 990 . . . . 277 280 1565 . . . . . Thermal 23856 | 25 84 . 1658 35 538 775 1703 209 7292 923 2171 2012 1355 5076 Explosive 3629 | . . 319 . . . . . . 726 . . . . 2584 Electromagnetic 1756 | . 129 . . . . . . . . . . . . 1627 Impact . | . . . . . . . . . . . . . . . Slashing . | . . . . . . . . . . . . . . . Piercing . | . . . . . . . . . . . . . . . Highest Corruption 49 | . . . . . . 3 6 . . . . 6 1 49 Average Corruption 10 | . . . . . . 3 3 . . . . 1 1 17 Corruption Purged . | . . . . . . . . . . . . . . . Corruption Blocked . | . . . . . . . . . . . . . . . Effects 111 | . . . . . . 12 8 . . . . 5 1 85 Message Errors 18 | . . . . . . 1 1 . . . . 1 . 15 Matter Fused 26 | . . . . . . 6 . . . . . 2 1 17 Heat Flow Errors 12 | . . . . . . . 2 . . . . . . 10 Energy Discharges 10 | . . . . . . 1 2 . . . . 1 . 6 Parts Fused 4 | . . . . . . . . . . . . . . 4 Data Loss (minor) 10 | . . . . . . 1 . . . . . 1 . 8 Data Loss (major) 5 | . . . . . . 1 1 . . . . . . 3 Misfires 6 | . . . . . . 1 1 . . . . . . 4 Alerts 5 | . . . . . . . 1 . . . . . . 4 Misdirections 4 | . . . . . . . . . . . . . . 4 Weapon Failures 11 | . . . . . . 1 . . . . . . . 10 Overload Shots 65 | . . . . . . . . . 26 2 . 1 16 20 Effects 5 | . . . . . . . . . 4 . . . . 1 Energy Bleed 2 | . . . . . . . . . 2 . . . . . Heat Surge 3 | . . . . . . . . . 2 . . . . 1 Overflow Damage 373 | . . . . . . . 43 . 78 . . . . 252 Projectiles 140 | . . . . . . . . . 20 . . . . 120 Explosions 217 | . . . . . . . 43 . 42 . . . . 132 Melee 16 | . . . . . . . . . 16 . . . . . Knockbacks 2 | . . . . . . . . . 2 . . . . . Impact 2 | . . . . . . . . . 2 . . . . . Kinetic . | . . . . . . . . . . . . . . . Secondary . | . . . . . . . . . . . . . . . Self-Inflicted Damage 87 | . 13 . . . . . . . 30 . . . . 44 Shots 3 | . 1 . . . . . . . 1 . . . . 1 Rammed 2 | . . . . . . . . . . . . . . 2 Targets Rammed 13 | . 2 . . . . . . . 5 . . 1 1 4 Kicked 10 | . 2 . . . . . . . 5 . . 1 . 2 Crushed 1 | . . . . . . . . . . . . . 1 . Highest Temperature 381 | 40 60 18 147 93 183 114 298 78 330 192 182 264 381 283 Average Temperature 67 | 20 17 8 37 48 59 24 71 43 92 123 56 129 82 90 Received Heat Transfer 2140 | . 126 258 300 9 66 27 72 . 531 9 . 220 52 470 Effects 6 | . . . . . . . . . . . . 1 1 4 Shutdowns 1 | . . . . . . . . . . . . . 1 . Energy Bleed 1 | . . . . . . . . . . . . . . 1 Interference 4 | . . . . . . . . . . . . 1 . 3 Siege Activations . | . . . . . . . . . . . . . . . Martial Activations . | . . . . . . . . . . . . . . . Shielding Activations . | . . . . . . . . . . . . . . . Robots Disrupted . | . . . . . . . . . . . . . . . Combat Hostiles . | . . . . . . . . . . . . . . . Robots Corrupted 10 | . . . . . . . . . 1 . . . . 9 Combat Hostiles 8 | . . . . . . . . . . . . . . 8 Parts Fried 17 | . . . . . . . . . 1 . . . . 16 Impact Corruptions 1 | . . . . . . . . . 1 . . . . . Robots Melted 17 | . . . 3 . 1 1 3 . 3 1 . 2 2 1 Combat Hostiles 16 | . . . 3 . 1 1 2 . 3 1 . 2 2 1 Parts Melted 107 | 1 . . 17 . 9 6 16 . 27 1 2 7 9 12 Heat Transferred 38039 | 74 198 . 5217 74 1369 1748 3911 379 9919 1073 3589 2627 1867 5994 Parts Sabotaged . | . . . . . . . . . . . . . . . Parts Stolen . | . . . . . . . . . . . . . . . Parts Stripped . | . . . . . . . . . . . . . . . Power Chain Reactions 1 | . 1 . . . . . . . . . . . . . Alert | -11 -10 -9 -9 -8 -7 -6 -5 -4 -4 -4 -4 -4 -3 -3 ------- Run | Yrd Mat Mat Sto Mat Fac Fac Fac Fac Ext Cet Arc Hub Res Qua Maximum Alert Level 3 | . . . . . . . 1 . 2 2 1 . . 3 Low Security (%) 76 | 100 100 100 100 100 100 100 90 100 33 . 87 100 100 52 Level 1 16 | . . . . . . . 9 . 39 60 12 . . 37 Level 2 6 | . . . . . . . . . 27 39 . . . 2 Level 3 1 | . . . . . . . . . . . . . . 7 Level 4 . | . . . . . . . . . . . . . . . Level 5 . | . . . . . . . . . . . . . . . High Security . | . . . . . . . . . . . . . . . Max Security . | . . . . . . . . . . . . . . . Peak Influence 898 | 5 140 195 181 12 30 30 289 135 531 499 277 105 46 898 Initial 279 | . . 29 16 5 . 11 . 135 . 279 142 . 33 22 Average 120 | . 48 79 44 1 5 4 77 34 287 397 68 42 9 212 Influence Increases 6647 | 5 333 499 613 14 161 106 507 87 1651 400 223 323 180 1545 Destroy 0b10 Robot/C 3460 | . 180 260 400 . 80 40 240 20 920 160 80 180 80 820 Destroy 0b10 Robot/NC 405 | 5 35 40 55 5 20 10 35 20 65 10 10 15 25 55 Destroy Leader 584 | . 44 80 90 2 24 10 44 14 114 . . 52 6 104 Allied During Kill 443 | . . . . . . . . . 200 156 87 . . . Successful Hack 217 | . 10 27 18 7 6 31 24 . 38 . . 18 8 30 Disable Machine 495 | . . 60 . . . . 60 . 60 30 30 . 45 210 Destroy Structure 563 | . 4 17 5 . 1 . 74 18 164 44 16 28 16 176 Partial Spotted 60 | . . . . . . . . 15 30 . . 15 . . Lose Combat Pursuer 420 | . 60 15 45 . 30 15 30 . 60 . . 15 . 150 Influence Decreases 5753 | 5 261 530 639 29 136 131 230 364 1152 542 580 260 203 691 Entered New Map 717 | . . 43 25 10 . 14 . 142 . 220 215 . 30 18 Time Decay 3681 | 5 261 285 350 19 136 117 220 222 632 262 345 220 154 453 Lost Part 421 | . . 10 10 . . . 10 . 120 . . 40 11 220 Lost Ally 180 | . . . . . . . . . 100 60 20 . . . Purge Threat 754 | . . 192 254 . . . . . 300 . . . 8 . Squads Dispatched 53 | . 3 2 3 . 2 4 9 2 6 . . 4 7 11 Investigation 8 | . 2 . 1 . . 2 . . 1 . . . 2 . Extermination 13 | . . . . . 2 1 2 1 . . . 1 . 6 Reinforcement 25 | . 1 2 1 . . 1 3 1 4 . . 3 5 4 Assault 2 | . . . . . . . . . 1 . . . . 1 Garrison 5 | . . . 1 . . . 4 . . . . . . . Intercept . | . . . . . . . . . . . . . . . Searches Triggered . | . . . . . . . . . . . . . . . Construction Impeded 2 | . . . . . . . . . 1 . . . . 1 Haulers Reinforced 6 | . . . . . . 1 1 1 . . . . 3 . Active Scanning Responses . | . . . . . . . . . . . . . . . Cargo Convoy Interrupts . | . . . . . . . . . . . . . . . Stealth | -11 -10 -9 -9 -8 -7 -6 -5 -4 -4 -4 -4 -4 -3 -3 --------- Run | Yrd Mat Mat Sto Mat Fac Fac Fac Fac Ext Cet Arc Hub Res Qua Distress Signals 23 | . 1 3 . 1 2 2 . . 2 2 . . 6 4 Communications Jammed 54 | . . . . . . . . . 1 . . 34 . 19 Distress Signals 54 | . . . . . . . . . 1 . . 34 . 19 Times Spotted 303 | . 18 20 28 3 19 14 20 6 61 10 2 17 13 72 Peak Tracking Total 11 | . 4 6 4 2 4 4 5 2 7 5 1 6 4 11 Tactical Retreats 17 | . 3 1 3 . 2 1 1 . 2 . . 1 . 3 Traps | -11 -10 -9 -9 -8 -7 -6 -5 -4 -4 -4 -4 -4 -3 -3 ------- Run | Yrd Mat Mat Sto Mat Fac Fac Fac Fac Ext Cet Arc Hub Res Qua Traps Triggered 13 | . 2 . . . 1 1 1 4 . . . . 3 1 Indirectly . | . . . . . . . . . . . . . . . Trap Hack Attempts . | . . . . . . . . . . . . . . . Triggered . | . . . . . . . . . . . . . . . Disarmed . | . . . . . . . . . . . . . . . Reprogrammed . | . . . . . . . . . . . . . . . Reused . | . . . . . . . . . . . . . . . Traps Extracted . | . . . . . . . . . . . . . . . Installed . | . . . . . . . . . . . . . . . Triggered . | . . . . . . . . . . . . . . . Machines | -11 -10 -9 -9 -8 -7 -6 -5 -4 -4 -4 -4 -4 -3 -3 ---------- Run | Yrd Mat Mat Sto Mat Fac Fac Fac Fac Ext Cet Arc Hub Res Qua Machines Disabled 36 | . . 4 . . . . 4 . 6 2 2 . 3 15 Max in Single Turn 3 | . . 2 . . . . 3 . 1 1 1 . 1 3 Garrison Access 4 | . . . . . . . . 1 . . . 1 2 . Network Hub 1 | . . . . . . . . . . . . 1 . . Machines Repaired . | . . . . . . . . . . . . . . . Machines Dismantled . | . . . . . . . . . . . . . . . Machines Sabotaged . | . . . . . . . . . . . . . . . Overloaded Fab Kills . | . . . . . . . . . . . . . . . Hacking | -11 -10 -9 -9 -8 -7 -6 -5 -4 -4 -4 -4 -4 -3 -3 --------- Run | Yrd Mat Mat Sto Mat Fac Fac Fac Fac Ext Cet Arc Hub Res Qua Machines Accessed 62 | . 5 4 11 2 2 4 3 1 14 2 . 6 2 6 Terminals 52 | . 5 4 8 2 1 3 2 . 13 2 . 5 2 5 Fabricators 1 | . . . . . 1 . . . . . . . . . Repair Stations 4 | . . . 2 . . 1 . . 1 . . . . . Recycling Units . | . . . . . . . . . . . . . . . Scanalyzers . | . . . . . . . . . . . . . . . Garrison Access 5 | . . . 1 . . . 1 1 . . . 1 . 1 Total Hacks 167 | . 15 19 35 8 4 14 5 1 30 2 . 14 9 11 Successful 73 | . 3 11 23 4 3 8 1 1 11 . . 4 2 2 Failed 94 | . 12 8 12 4 1 6 4 . 19 2 . 10 7 9 Catastrophic 27 | . 1 4 5 . 1 1 2 . 5 1 . . 2 5 Database Lockouts . | . . . . . . . . . . . . . . . Manual 82 | . 13 15 8 5 3 5 3 . 12 1 . 7 9 1 Terminals 131 | . 15 19 17 8 3 7 4 . 27 2 . 11 9 9 Fabricators 1 | . . . . . 1 . . . . . . . . . Repair Stations 26 | . . . 16 . . 7 . . 3 . . . . . Recycling Units . | . . . . . . . . . . . . . . . Scanalyzers . | . . . . . . . . . . . . . . . Garrison Access 9 | . . . 2 . . . 1 1 . . . 3 . 2 Terminal Hacks 34 | . 1 9 9 2 1 . . . 7 . . 1 2 2 Record 1 | . . . . . . . . . . . . . . 1 Robot Analysis 4 | . 1 1 . 1 1 . . . . . . . . . Prototype ID Bank 3 | . . 1 2 . . . . . . . . . . . Open Door 7 | . . . 2 . . . . . 5 . . . . . Branch Access Points 1 | . . . . . . . . . . . . . 1 . Unreport Threat 11 | . . 3 4 . . . . . 2 . . 1 1 . Maintenance Status 1 | . . . . . . . . . . . . . . 1 Transport Status 2 | . . 2 . . . . . . . . . . . . Hauler Manifests 3 | . . 1 1 1 . . . . . . . . . . Zone Layout 1 | . . 1 . . . . . . . . . . . . Fabricator Hacks 1 | . . . . . 1 . . . . . . . . . Network Status 1 | . . . . . 1 . . . . . . . . . Repair Station Hacks 21 | . . . 13 . . 6 . . 2 . . . . . Scan Component 12 | . . . 7 . . 3 . . 2 . . . . . Repair 9 | . . . 6 . . 3 . . . . . . . . Recycling Unit Hacks . | . . . . . . . . . . . . . . . Scanalyzer . | . . . . . . . . . . . . . . . Garrison Access Hacks 2 | . . . . . . . . 1 . . . 1 . . Seal Access 2 | . . . . . . . . 1 . . . 1 . . Unauthorized Hacks 15 | . 2 2 1 2 1 2 1 . 2 . . 2 . . Terminals 15 | . 2 2 1 2 1 2 1 . 2 . . 2 . . Botnet 15 | . 2 2 1 2 1 2 1 . 2 . . 2 . . Fabricators . | . . . . . . . . . . . . . . . Repair Stations . | . . . . . . . . . . . . . . . Recycling Units . | . . . . . . . . . . . . . . . Scanalyzers . | . . . . . . . . . . . . . . . Garrison Access . | . . . . . . . . . . . . . . . Data Cores Recovered 4 | . . 1 1 1 . . 1 . . . . . . . Used 1 | . . 1 . . . . . . . . . . . . Hacking Detections 53 | . 5 4 9 2 2 4 3 . 10 2 . 6 2 4 Full Trace Events 5 | . 2 . 1 . . 1 . . 1 . . . . . Feedback Events . | . . . . . . . . . . . . . . . Feedback Blocked . | . . . . . . . . . . . . . . . Robot Schematics Acquired . | . . . . . . . . . . . . . . . Robots Built . | . . . . . . . . . . . . . . . Authchips . | . . . . . . . . . . . . . . . Time . | . . . . . . . . . . . . . . . Total Robot Build Rating . | . . . . . . . . . . . . . . . Part Schematics Acquired . | . . . . . . . . . . . . . . . Parts Built . | . . . . . . . . . . . . . . . Authchips . | . . . . . . . . . . . . . . . Time . | . . . . . . . . . . . . . . . Total Part Build Rating . | . . . . . . . . . . . . . . . Parts Repaired 8 | . . . 6 . . 2 . . . . . . . . Time 340 | . . . 206 . . 134 . . . . . . . . Parts Recycled . | . . . . . . . . . . . . . . . Recycled Matter . | . . . . . . . . . . . . . . . Retrieved Matter . | . . . . . . . . . . . . . . . Retrieved Components . | . . . . . . . . . . . . . . . Parts Scanalyzed . | . . . . . . . . . . . . . . . Part Schematics Acquired . | . . . . . . . . . . . . . . . Parts Damaged . | . . . . . . . . . . . . . . . Bothacking | -11 -10 -9 -9 -8 -7 -6 -5 -4 -4 -4 -4 -4 -3 -3 ------------ Run | Yrd Mat Mat Sto Mat Fac Fac Fac Fac Ext Cet Arc Hub Res Qua Used RIF Installer . | . . . . . . . . . . . . . . . Robots Hacked . | . . . . . . . . . . . . . . . Non-combat . | . . . . . . . . . . . . . . . Combat . | . . . . . . . . . . . . . . . Robot Hacks Applied . | . . . . . . . . . . . . . . . Relay Couplers Released 3 | . . . . . . . . . . . . . 3 . Machine Destruction 3 | . . . . . . . . . . . . . 3 . Fabnet Peak Effective % . | . . . . . . . . . . . . . . . Robots Rewired 6 | . . . . . . . . . 6 . . . . . Allies Hacked . | . . . . . . . . . . . . . . . Hacks Repelled . | . . . . . . . . . . . . . . . Allies | -11 -10 -9 -9 -8 -7 -6 -5 -4 -4 -4 -4 -4 -3 -3 -------- Run | Yrd Mat Mat Sto Mat Fac Fac Fac Fac Ext Cet Arc Hub Res Qua Total Allies 18 | . . . . . . . . . 13 5 . . . . Largest Group 10 | . . . . . . . . . 8 10 10 . . . Highest-Rated Group 789 | . . . . . . . . . 477 789 789 . . . Highest-Rated Ally 159 | . . . . . . . . . 159 159 159 . . . Total Orders . | . . . . . . . . . . . . . . . Ally Attacks 218 | . . . . . . . . . 93 65 60 . . . Total Damage 5133 | . . . . . . . . . 1710 1846 1577 . . . Kills 23 | . . . . . . . . . 13 6 4 . . . Allies Corrupted . | . . . . . . . . . . . . . . . Allies Melted . | . . . . . . . . . . . . . . . Intel | -11 -10 -9 -9 -8 -7 -6 -5 -4 -4 -4 -4 -4 -3 -3 ------- Run | Yrd Mat Mat Sto Mat Fac Fac Fac Fac Ext Cet Arc Hub Res Qua Active Infowar (turns) 11538 | . 265 342 51 . . 682 989 735 2513 571 1512 653 1034 2191 Optics 9397 | . . . . . . . 188 735 2513 571 1512 653 1034 2191 Sensors 6960 | . . . . . . 682 924 528 251 . 1336 457 1034 1748 Terrain 265 | . 265 . . . . . . . . . . . . . Seismic 170 | . . 170 . . . . . . . . . . . . T.N.C. 223 | . . 172 51 . . . . . . . . . . . Jamming 3938 | . . . . . . . . 647 76 . . 489 1033 1693 ECM 2 | . . . . . . . . . . . . . . 2 Robot Analysis Total 4 | . 1 1 . 1 1 . . . . . . . . . Derelict Logs Recovered . | . . . . . . . . . . . . . . . Drone Launches . | . . . . . . . . . . . . . . . Drone Recoveries . | . . . . . . . . . . . . . . . Exploration | -11 -10 -9 -9 -8 -7 -6 -5 -4 -4 -4 -4 -4 -3 -3 ------------- Run | Yrd Mat Mat Sto Mat Fac Fac Fac Fac Ext Cet Arc Hub Res Qua Turns Passed 15570 | 68 906 785 1458 225 1036 740 989 735 2513 571 1512 653 1034 2345 Spaces Moved 8882 | 43 467 482 733 175 770 411 654 525 1530 400 412 410 644 1226 Core 122 | 11 1 . . . . . . . . . . . . 110 Treads 1317 | . . . . . . . . . . . . . 411 906 Legs 7443 | 32 466 482 733 175 770 411 654 525 1530 400 412 410 233 210 Wheels . | . . . . . . . . . . . . . . . Hover . | . . . . . . . . . . . . . . . Flight . | . . . . . . . . . . . . . . . Fastest Speed 50 | 50 120 120 120 120 122 125 122 105 108 122 120 114 114 50 Average Speed 125 | 118 152 120 120 120 122 125 122 120 117 122 121 119 134 138 Slowest Speed 305 | 150 200 120 120 122 125 125 124 192 122 122 122 120 305 270 Overloaded Moves . | . . . . . . . . . . . . . . . Propulsion Burnouts . | . . . . . . . . . . . . . . . Robots Hopped . | . . . . . . . . . . . . . . . Potential Cave-ins 8 | . . . . . . . . . . . . . 2 6 Cave-ins Triggered . | . . . . . . . . . . . . . . . Teleports 1 | . . . . . . . . . . . . . . 1 Exploration Rate (%) 48 | 4 65 47 82 20 24 14 24 16 97 85 100 41 22 80 Regions Visited 14 Branch Regions 6 Pre-discovered Areas . | . . . . . . . . . . . . . . . Known Exits Taken 6 | . . . . . . 1 1 1 1 . . 1 1 . Unknown Exits Taken 8 | 1 1 1 1 1 1 . . . . 1 1 . . . Scrap Searched . | . . . . . . . . . . . . . . . Spaces Dug 28 | . . . . . . . . . 1 . . 3 6 18 Terrain Destroyed 257 | . 3 14 . . . . 34 10 86 3 11 13 9 74 Melee . | . . . . . . . . . . . . . . . Projectile 148 | . . . . . . . 14 10 57 3 11 13 9 31 AOE 109 | . 3 14 . . . . 20 . 29 . . . . 43 Terrain Rammed . | . . . . . . . . . . . . . . . Walls Destroyed . | . . . . . . . . . . . . . . . Machines Disabled . | . . . . . . . . . . . . . . . Actions | -11 -10 -9 -9 -8 -7 -6 -5 -4 -4 -4 -4 -4 -3 -3 --------- Run | Yrd Mat Mat Sto Mat Fac Fac Fac Fac Ext Cet Arc Hub Res Qua Total 12060 | 53 578 591 1176 189 829 603 754 614 1979 458 1339 511 761 1625 Wait 1697 | 1 10 13 326 2 22 147 19 23 107 32 830 36 11 118 Move 8868 | 42 466 481 732 174 769 410 653 524 1529 399 411 409 643 1226 Hop . | . . . . . . . . . . . . . . . Pick Up 109 | 2 14 5 9 1 4 6 10 6 21 . 6 2 14 9 Fast Attach 130 | 6 3 5 7 2 1 6 6 13 16 4 10 3 17 31 Attach 68 | . 2 3 1 3 2 3 2 5 14 . 1 2 6 24 Detach 33 | . 1 1 . 2 1 . 2 2 3 . 2 . 2 17 Swap 176 | . 11 11 13 1 6 6 6 12 51 4 11 18 11 15 Drop 254 | . 11 10 18 3 6 10 17 20 61 7 25 12 25 29 Fire 655 | 2 58 62 70 1 13 15 39 7 126 12 43 28 31 148 Melee . | . . . . . . . . . . . . . . . Ram . | . . . . . . . . . . . . . . . Kick 10 | . 2 . . . . . . . 5 . . 1 . 2 Crush 3 | . . . . . . . . . . . . . 1 2 Escape Stasis 11 | . . . . . 5 . . 2 . . . . . 4 Rewire 46 | . . . . . . . . . 46 . . . . . Trap . | . . . . . . . . . . . . . . . Miscellaneous . | . . . . . . . . . . . . . . . Route ------- -11/Scrapyard -10/Materials (discovered 3 exits: *Mat x2 / [*Min]) -9/Materials (discovered 5 exits: *Mat x2 / [*Min] / *Sto x2) -9/Storage -8/Materials -7/Factory -6/Factory -5/Factory -4/Factory (discovered 2 exits: *Upp / *Ext) -4/Extension (discovered 3 exits: *Res x2 / *Cet) -4/Cetus (discovered 2 exits: *Res / *Arc) -4/Archives (discovered 3 exits: *Res / *Hub x2) -4/Hub_04(d) -3/Research (discovered 4 exits: [*Res] / Arm / *Qua x2) -3/Quarantine History --------- Turn | Location | Event 16 | -11/Scrapyard | Discovered new exit (range 15) 69 | -11/Scrapyard | Entered Materials 256 | -10/Materials | Discovered new exit (range 8) 313 | -10/Materials | Build established: Mutant 369 | -10/Materials | Discovered new exit (range 10) 803 | -10/Materials | Discovered new exit (range 9) 975 | -10/Materials | Entered another Materials area 975 | -9/Materials | Evolved 2 slots: Propulsion x2 1256 | -9/Materials | Discovered new exit (range 15) 1355 | -9/Materials | Build established: Scavenger-Mutant 1374 | -9/Materials | Discovered new exit (range 7) 1387 | -9/Materials | Discovered new exit (range 5) 1569 | -9/Materials | Discovered new exit (range 9) 1677 | -9/Materials | Discovered new exit (range 8) 1760 | -9/Materials | Entered Storage 1860 | -9/Storage | Repaired Aluminum Leg 2264 | -9/Storage | Garrison activated, responded to threat 2868 | -9/Storage | Repaired Hvy. Ion Engine 2921 | -9/Storage | Repaired Imp. Medium Laser 2948 | -9/Storage | Repaired Aluminum Leg 2976 | -9/Storage | Repaired Aluminum Leg 3003 | -9/Storage | Repaired Aluminum Leg 3200 | -9/Storage | Discovered new exit (range 16) 3218 | -9/Storage | Entered Materials 3218 | -8/Materials | Evolved 2 slots: Utility x1, Weapon x1 3386 | -8/Materials | Discovered new exit (range 14) 3396 | -8/Materials | Met 7R-MNS 3443 | -8/Materials | Entered Factory 3443 | -7/Factory | Evolved 2 slots: Utility x1, Weapon x1 3444 | -7/Factory | Caught up to 7R-MNS 3666 | -7/Factory | Build established: Scavenger-Tank 4020 | -7/Factory | Discovered new exit (range 4) 4479 | -7/Factory | Entered another Factory area 4479 | -6/Factory | Evolved 2 slots: Utility x2 4480 | -6/Factory | Caught up to 7R-MNS 4639 | -6/Factory | Spotted B-75 Beast 4808 | -6/Factory | Build established: Skirmisher 4937 | -6/Factory | Discovered new exit (range 5) 4940 | -6/Factory | Identified exit to Factory 5040 | -6/Factory | Repaired Cooling System 5092 | -6/Factory | Repaired Imp. Medium Laser 5219 | -6/Factory | Entered another Factory area 5219 | -5/Factory | Evolved 2 slots: Propulsion x1, Utility x1 5220 | -5/Factory | Caught up to 7R-MNS 5250 | -5/Factory | Garrison activated, responded to threat 5507 | -5/Factory | Build established: Scavenger-Tank 5663 | -5/Factory | Garrison activated, responded to threat 6070 | -5/Factory | Discovered new exit (range 14) 6110 | -5/Factory | Identified exit to Factory 6208 | -5/Factory | Entered another Factory area 6208 | -4/Factory | Evolved 2 slots: Power x1, Utility x1 6209 | -4/Factory | Caught up to 7R-MNS 6319 | -4/Factory | Build established: Scavenger-Skirmisher 6607 | -4/Factory | Allied Derelicts emerged from ambush trap array 6717 | -4/Factory | 7R-MNS successfully reached the Upper Caves 6731 | -4/Factory | Discovered new exit (range 15) 6742 | -4/Factory | Discovered new exit (range 11) 6769 | -4/Factory | Identified exit to Upper Caves 6926 | -4/Factory | Identified exit to Extension 6943 | -4/Factory | Entered Extension 7368 | -4/Extension | Build established: Scavenger-Tank 7618 | -4/Extension | Disrupted transfer network 7706 | -4/Extension | Spotted B-86 Titan 7806 | -4/Extension | Destroyed B-86 Titan 7820 | -4/Extension | Lost 4 parts (1p1u2w) 7825 | -4/Extension | Spotted B-86 Titan 7859 | -4/Extension | Destroyed B-86 Titan 7999 | -4/Extension | Rescued a captive Derelict 8121 | -4/Extension | Rescued a captive Derelict 8122 | -4/Extension | Rescued a captive Derelict 8371 | -4/Extension | Discovered new exit (range 3) 8375 | -4/Extension | Identified exit to Research 8511 | -4/Extension | Discovered new exit (range 21) 8529 | -4/Extension | Discovered exit to Research (range 20) 8580 | -4/Extension | Identified exit to Cetus 8682 | -4/Extension | Rescued a captive Derelict 8683 | -4/Extension | Rescued a captive Derelict 8693 | -4/Extension | First assault squad dispatched 8706 | -4/Extension | Rescued a captive Derelict 8984 | -4/Extension | Build established: Scavenger-Gunner 9234 | -4/Extension | Rescued A7 9456 | -4/Extension | Entered Cetus 9456 | -4/Cetus | Accompanied by 8 allies (A7) 9461 | -4/Cetus | Acquired a Cetus Manufacturing Module code from A7 9467 | -4/Cetus | Spotted Cetus Guard 9469 | -4/Cetus | Spotted Cetus Guard 9469 | -4/Cetus | Spotted Cetus Guard 9481 | -4/Cetus | Spotted Cetus Guard 9484 | -4/Cetus | Destroyed Cetus Guard 9486 | -4/Cetus | Allies destroyed Cetus Guard 9490 | -4/Cetus | Destroyed Cetus Guard 9490 | -4/Cetus | Destroyed Cetus Guard 9616 | -4/Cetus | Escorted A7 to Cetus Mainframe 9625 | -4/Cetus | Started Cetus Manufacturing Module 9633 | -4/Cetus | Discovered new exit (range 21) 9650 | -4/Cetus | Manufactured an Enhanced Grunt 9661 | -4/Cetus | Spotted Cetus Guard 9667 | -4/Cetus | Spotted Cetus Guard 9667 | -4/Cetus | Spotted Cetus Guard 9675 | -4/Cetus | Manufactured an Enhanced Grunt 9678 | -4/Cetus | Spotted Cetus Guard 9684 | -4/Cetus | Discovered exit to Research (range 21) 9687 | -4/Cetus | Destroyed Cetus Guard 9696 | -4/Cetus | Allies destroyed Cetus Guard 9696 | -4/Cetus | Allies destroyed Cetus Guard 9699 | -4/Cetus | Allies destroyed Cetus Guard 9700 | -4/Cetus | Manufactured an Enhanced Grunt 9711 | -4/Cetus | Met Revision 17 9725 | -4/Cetus | Manufactured an Enhanced Grunt 9750 | -4/Cetus | Manufactured an Enhanced Grunt 9785 | -4/Cetus | Build established: Scavenger-Tank 10027 | -4/Cetus | Entered Archives 10027 | -4/Archives | Accompanied by 10 allies (A7) 10032 | -4/Archives | Received a hacking code to weaken MAIN.C 10109 | -4/Archives | Discovered new exit (range 21) 10150 | -4/Archives | Discovered new exit (range 21) 10167 | -4/Archives | Discovered exit to Research (range 22) 10177 | -4/Archives | Unable to access archive contents 10386 | -4/Archives | Build established: Scavenger-Skirmisher 10482 | -4/Archives | Murdered 3 allies 10644 | -4/Archives | Found Prototype Device 10644 | -4/Archives | Identified Exp. Thermal Shield 11481 | -4/Archives | Unable to access archive contents 11539 | -4/Archives | Entered Hub_04(d) 11591 | -4/Hub_04(d) | Spotted B-86 Titan 12065 | -4/Hub_04(d) | Network Hub disabled 12124 | -4/Hub_04(d) | Discovered exit to Research (range 7) 12163 | -4/Hub_04(d) | Spotted Lightning 12169 | -4/Hub_04(d) | Spotted Lightning 12177 | -4/Hub_04(d) | Spotted Lightning 12192 | -4/Hub_04(d) | Entered Research 12192 | -3/Research | Evolved 2 slots: Utility x2 12221 | -3/Research | Lost 4 parts (1p1n1u1w) 12242 | -3/Research | Spotted B-86 Titan 12374 | -3/Research | Spotted B-86 Titan 12376 | -3/Research | Discovered new exit (range 9) 12387 | -3/Research | Build established: Scavenger-Tank 12392 | -3/Research | Revision forces began assault on 0b10 12431 | -3/Research | Met up with Revision 17++ 12624 | -3/Research | Found Prototype Processor 12624 | -3/Research | Identified Exp. Melee Analysis Suite 12627 | -3/Research | Found Prototype Processor 12627 | -3/Research | Identified Spectral Analyzer 12702 | -3/Research | Identified exit to Armory 12702 | -3/Research | Identified exit to Quarantine 12818 | -3/Research | Found Prototype Launcher 12819 | -3/Research | Identified Hellfire Missile Launcher 12892 | -3/Research | Research terminal network offline 12988 | -3/Research | Found Hellfire Missile Launcher 13193 | -3/Research | Build established: Scavenger-Skirmisher 13226 | -3/Research | Entered Quarantine 13348 | -3/Quarantine | Found Alien Reactor 13368 | -3/Quarantine | Identified Matter Drive 13465 | -3/Quarantine | Found Alien Artifact 13465 | -3/Quarantine | Identified Core Reset Matrix 13465 | -3/Quarantine | Used Core Reset Matrix 13469 | -3/Quarantine | Detected hypermatrix surge 13469 | -3/Quarantine | Sensed 12 artifacts in vicinity 13604 | -3/Quarantine | Found Phase Redirector 13897 | -3/Quarantine | Found Core Cannon 14138 | -3/Quarantine | Found Prototype Device 14138 | -3/Quarantine | Identified Exp. ECM Suite 14193 | -3/Quarantine | Spotted Alpha 7 14243 | -3/Quarantine | System corruption reached 10% 14247 | -3/Quarantine | Destroyed Alpha 7 14255 | -3/Quarantine | Found Prototype Processor 14255 | -3/Quarantine | Identified Exp. Targeting Computer 14258 | -3/Quarantine | Found Prototype Processor 14258 | -3/Quarantine | Identified Exp. Target Analyzer 14483 | -3/Quarantine | Destroyed 11 combat bots 14662 | -3/Quarantine | Core integrity fell below 50% 14871 | -3/Quarantine | System corruption reached 30% 15014 | -3/Quarantine | Build established: Scavenger-Tank 15229 | -3/Quarantine | Found Subatomic Replicator 15240 | -3/Quarantine | Used Subatomic Replicator to replicate Quantum Rifle 15328 | -3/Quarantine | Scanned by Researcher 15371 | -3/Quarantine | Destroyed 11 combat bots 15371 | -3/Quarantine | Lost 11 parts (2p3n2u4w) 15428 | -3/Quarantine | Found Hpw. Transdimensional Reconstructor 15428 | -3/Quarantine | Warped through subspace 15435 | -3/Quarantine | Lost 4 parts (1n3w) 15476 | -3/Quarantine | First assault squad dispatched 15493 | -3/Quarantine | Core integrity fell below 20% 15516 | -3/Quarantine | Released all parts (14) 15571 | -3/Quarantine | Destroyed by G-67 Veteran with Plasma Rifle Last Messages --------------- 15516_ Released Adv. Transmission Jammer. 15516_ Released Hds. Centrium Leg. 15516_ Released Exp. Targeting Computer. 15516_ Released Enh. Optical Array. 15516_ Released Adv. Energy Well. 15516_ Released Adv. Signal Interpreter. 15516_ Released Adv. Salvage Targeting Computer. 15516_ Released Lrn. Sensor Array. 15516_ Released Rnf. Fission Core. 15516_ Released Graphene Brace. 15516_ Released Com. HERF Cannon. 15529_ ALERT: Potential suspicious activity detected, Programmers report to Quarantine Zone 8O. 15545_ System corrupted: Component data lost. 15552_ Triggered Segregator Trap. 15552_ Arcs of energy rise from the floor. 15560_ SO5PYN9,2D X|EYR|X3WJ> 15567_ U-05 Engineer lays Concrete. 15569_ W-44 Eye sends out distress signal. Map ----- +----------------------------------------------------+ | | | | | | | | | | | | | | | | | | | ?????????????????????????????????????????????????? | | ?????????????????????????????????????????????????? | | ##########???????####????????##??????????????????? | | # #??#???? # """"" #??????????????????? | | #""" = #??# """"" # """""" ##?????????????????? | | #""" #??# """"" # """""" ""#????????????????? | | #""" #??# "!" # " """ ""#????????????????? | | # #??# """ # T"#????????????????? | | #""" #??# # ""#????????????????? | | #""" #??? # ""?????????????????? | | #""" #????? # #??????????????????? | | # #??????? #?? ????????????????????? | | #####+#############+######;###########???????????? | | """ o #???????????? | | ""T"" #???????????? | | "" "" #???????????? | | ui@ g #???????????? | | ########### g####+##########???????? | | """ # """"" # p c g # #???????? | | """ # """"" # """^ g # """" """" #???????? | | """ # """"" = # """^ # """" """" #???????? | | # # """ # """" """" #???????? | | """ # #^ wp !!! # """" """" #???????? | | """ #% # p !!! # #???????? | | """ # = # !!! # """" #???????? | | # # # "" "" """" #???????? | | #######+### # ?"S"" ""?" #???????? | | #????" "??" #???????? | | #????? ?? #???????? | | ###############???????? | | " """"" """"" """"" # #????????? | | " """"" """"" """"" #????????? | | " """"" """"" """"" " =*# #????????? | | " """"" """"" """"" [%=#% =% " #????????? | | = #!%% ! #????????? | | *!!]=# != """ #????????? | | !**[!%+% % " "" #????????? | | ""############## [!=*[!#|% "" ! #????????? | | ""#????????????########[===# " % #????????? | | ###??????????????????##%|=%# " ! #????????? | | ??????????????????????#!|%*# #????????? | +----------------------------------------------------+ Best States ------------- Heat Dissipation 115 Coolant Potential 100 Energy Generation 41 Energy Capacity 1055 Matter Stores 300 Matter Capacity 300 Sight Range 22 Robot Scan Range 18 Terrain Scan Range 16 Terrain Scan Density 10 ECM Strength 3 Jamming Range 16 Base Temperature (-) 200 Armor Coverage 600 Weapon Shielding 33 Point Defense Rating 240 Evasion (%) 70 Targeting Accuracy 12 Target Analysis 10 Recoil Reduction 5 Salvage Targeting 3 Item Schematics ----------------- None Robot Schematics ------------------ None Fabricated ------------ Nothing Repaired ---------- Aluminum Leg | 23% | -9/Storage Hvy. Ion Engine | 36% | -9/Storage Imp. Medium Laser | 84% | -9/Storage Aluminum Leg | 56% | -9/Storage Aluminum Leg | 64% | -9/Storage Aluminum Leg | 67% | -9/Storage Cooling System | 62% | -6/Factory Imp. Medium Laser | 60% | -6/Factory Alien Tech Used ----------------- Matter Drive Core Reset Matrix Phase Redirector Subatomic Replicator High-powered Transdimensional Reconstructor Achievements -------------- Main Advantage Revolutionary Research Challenges ------------ None Game ------ Seed FlyingCloakWand Manual? 0 Play Time 03:26:28 Cumulative 120.2 hours Start 2025.08.08 @ 21:33:58 End 2025.08.09 @ 01:07:47 Sessions 1 Manual Loads 0 Difficulty Rogue Special Mode None Game No. 106 Rogue 106 Adventurer 0 Explorer 0 Win Type - Total 4 Types 4/0/0/0/0/0/0/0/0/0 Lore% 30 Gallery% 52 Achievement% 47 Wizard Run 0 Options --------- Layout 2 ASCII 0 Keyboard 1 Movement Arrows Keybinds 0 Fullscreen 1 Font 32/Tamsyn Map View 50x44 Zoom Use 0% Tactical HUD 1 Map Filters NONE Filters NONE Steam 1 RUN: 66d4da98-f2e4-4482-a34f-9feee8d2befc